bitfinex/quotes_SOLUSD_20250705
["timestamp","ask_amount","ask_price","bid_price","bid_amount"]
[1751723182528,5.04322763,148.27,148.24,0.14216157]
[1751723182753,5.04322763,148.26,148.25,6.74536256]
[1751723184650,5.04322763,148.26,148.25,6.88752413]
[1751723184844,0.03,148.28,148.25,13.7010385]
[1751723185158,0.03,148.26,148.25,13.84320007]
[1751723194571,0.03,148.26,148.25,6.88752413]
[1751723203481,0.03,148.26,148.25,13.84320007]
[1751723203776,0.03,148.26,148.25,11.3384566]
[1751723220870,0.03,148.26,148.25,37.3384566]
[1751723232073,0.03,148.26,148.25,71.3584566]
[1751723248202,0.03,148.26,148.25,37.3384566]
[1751723250806,0.03,148.26,148.25,71.3584566]
[1751723260507,0.03,148.26,148.25,32.74536256]
[1751723260708,0.03,148.26,148.24,6.74568547]
[1751723260883,0.03,148.26,148.23,6.94]
[1751723260884,9.49517006,148.25,148.23,6.94]
[1751723261207,1.61,148.23,148.21,0.06]
[1751723261392,9.49517006,148.22,148.21,0.06]
[1751723264287,4.45093247,148.22,148.21,0.06]
[1751723268514,11.02603247,148.22,148.21,0.06]
[1751723268692,16.03763663,148.22,148.21,0.06]
[1751723269315,11.02603247,148.22,148.21,0.06]
[1751723270014,17.7727603,148.22,148.21,0.06]
[1751723270605,22.77884483,148.22,148.21,0.06]
[1751723272308,17.7727603,148.22,148.21,0.06]
[1751723276125,36.42240916,148.22,148.21,0.06]
[1751723276298,41.41682245,148.22,148.21,0.06]
[1751723282829,41.41682245,148.22,148.19,0.06]
[1751723282830,26.0,148.2,148.19,0.06]
[1751723283010,35.43822874,148.2,148.19,0.06]
[1751723283214,36.97162874,148.2,148.19,0.06]
[1751723285731,43.71926706,148.2,148.19,0.06]
[1751723290144,18.79181043,148.19,148.13,0.06]
[1751723290357,4.45093247,148.14,148.13,0.06]
[1751723297056,4.45093247,148.15,148.13,0.06]
[1751723300450,11.20011642,148.17,148.13,0.06]
[1751723300650,11.20011642,148.17,148.13,4.51093247]
[1751723301856,11.20011642,148.17,148.13,0.06]
[1751723302050,8.24873503,148.18,148.13,0.06]
[1751723302251,12.6996675,148.18,148.13,4.51093247]
[1751723302553,4.99783527,148.17,148.13,4.51093247]
[1751723303238,9.44876774,148.17,148.13,11.26161919]
[1751723303447,4.99783527,148.17,148.13,6.81068672]
[1751723303658,4.45093247,148.18,148.13,11.26161919]
[1751723303830,4.45093247,148.17,148.13,11.26161919]
[1751723304352,4.45093247,148.18,148.13,11.26161919]
[1751723304555,4.45093247,148.17,148.13,0.06]
[1751723305039,9.44876774,148.17,148.13,0.06]
[1751723305241,4.99783527,148.16,148.13,0.06]
[1751723309269,4.45093247,148.17,148.13,0.06]
[1751723309436,13.03018338,148.19,148.13,0.06]
[1751723309437,4.45093247,148.15,148.13,0.06]
[1751723309764,5.02119248,148.14,148.13,0.06]
[1751723310832,4.45093247,148.15,148.13,0.06]
[1751723311158,5.02322209,148.14,148.13,0.06]
[1751723311347,5.02322209,148.16,148.13,0.06]
[1751723311661,5.02322209,148.15,148.13,0.06]
[1751723311879,5.02322209,148.16,148.13,0.06]
[1751723312157,4.45093247,148.17,148.13,0.06]
[1751723312158,5.02322209,148.15,148.13,0.06]
[1751723312362,5.02322209,148.16,148.13,0.06]
[1751723312566,5.02322209,148.15,148.13,0.06]
[1751723312747,5.02322209,148.16,148.13,0.06]
[1751723312952,5.02322209,148.15,148.13,0.06]
[1751723313145,5.02322209,148.16,148.13,0.06]
[1751723313455,4.45093247,148.17,148.13,0.06]
[1751723313456,5.02322209,148.15,148.13,0.06]
[1751723313665,5.02322209,148.16,148.13,0.06]
[1751723313958,5.02322209,148.15,148.14,6.75037127]
[1751723314170,5.02322209,148.18,148.14,11.20130374]
[1751723314470,5.02322209,148.18,148.15,4.59309404]
[1751723314633,5.02322209,148.2,148.15,4.59309404]
[1751723314839,5.02322209,148.19,148.16,4.45093247]
[1751723315051,5.02322209,148.18,148.16,4.45093247]
[1751723315246,4.45093247,148.19,148.14,6.75037127]
[1751723315482,9.48088088,148.18,148.14,6.75037127]
[1751723315766,4.45093247,148.16,148.13,0.06]
[1751723315962,9.48088088,148.16,148.13,0.06]
[1751723316285,6.74897315,148.18,148.13,0.06]
[1751723316445,4.45093247,148.16,148.13,0.06]
[1751723316641,9.48088088,148.16,148.13,0.06]
[1751723316839,4.45093247,148.16,148.13,0.06]
[1751723317040,9.48088088,148.16,148.13,0.06]
[1751723317258,4.45093247,148.16,148.13,0.06]
[1751723317773,6.96715875,148.16,148.13,0.06]
[1751723318646,12.00000708,148.17,148.13,0.06]
[1751723318843,6.96715875,148.18,148.13,7.02715875]
[1751723319043,5.03316909,148.17,148.13,7.02715875]
[1751723319247,6.96715875,148.18,148.13,7.02715875]
[1751723319552,5.03420386,148.17,148.13,7.02715875]
[1751723319757,6.96715875,148.18,148.14,6.75037127]
[1751723319947,5.03415789,148.17,148.14,6.75037127]
[1751723320146,6.96715875,148.19,148.14,13.71753002]
[1751723320361,5.03547762,148.18,148.14,13.71753002]
[1751723320667,5.03547762,148.17,148.14,13.71753002]
[1751723320866,6.96715875,148.19,148.14,13.71753002]
[1751723321075,5.03554005,148.18,148.14,13.71753002]
[1751723321260,6.96715875,148.19,148.14,13.71753002]
[1751723321261,5.03554005,148.17,148.14,13.71753002]
[1751723321566,6.96715875,148.19,148.14,13.71753002]
[1751723321768,5.03592318,148.18,148.14,13.71753002]
[1751723321960,5.03592318,148.17,148.14,13.71753002]
[1751723322163,6.96715875,148.19,148.14,13.71753002]
[1751723322469,6.96715875,148.19,148.13,0.06]
[1751723322470,5.03591624,148.18,148.13,0.06]
[1751723322639,5.03591624,148.17,148.14,6.96715875]
[1751723322843,6.96715875,148.19,148.14,6.96715875]
[1751723323045,5.03570439,148.18,148.14,6.96715875]
[1751723323245,5.03570439,148.17,148.14,6.96715875]
[1751723323457,6.96715875,148.19,148.14,6.96715875]
[1751723323661,5.03563517,148.18,148.15,6.74991562]
[1751723323862,5.03563517,148.17,148.15,6.74991562]
[1751723324061,6.96715875,148.19,148.15,6.74991562]
[1751723324265,5.03579779,148.18,148.15,6.74991562]
[1751723324575,5.03579779,148.17,148.15,6.74991562]
[1751723324777,6.96715875,148.19,148.15,6.74991562]
[1751723324961,5.03545525,148.18,148.15,6.74991562]
[1751723325275,5.03545525,148.17,148.15,6.74991562]
[1751723325460,6.96715875,148.19,148.15,6.74991562]
[1751723325660,5.03516322,148.18,148.15,6.74991562]
[1751723325862,5.03516322,148.17,148.15,6.74991562]
[1751723326062,6.96715875,148.19,148.15,6.74991562]
[1751723326265,5.03516322,148.18,148.15,6.74991562]
[1751723326578,5.03516322,148.17,148.15,6.74991562]
[1751723326780,6.96715875,148.19,148.15,6.74991562]
[1751723326979,5.03499813,148.18,148.15,6.74991562]
[1751723327188,5.03499813,148.17,148.15,6.74991562]
[1751723327394,5.03499813,148.2,148.16,6.96715875]
[1751723327690,5.03499813,148.19,148.18,6.96715875]
[1751723327855,5.03499813,148.19,148.17,6.96715875]
[1751723328047,6.96715875,148.22,148.17,6.96715875]
[1751723328252,5.03530858,148.21,148.17,6.96715875]
[1751723328452,5.03530858,148.2,148.18,6.74854906]
[1751723328690,5.03530858,148.19,148.18,6.74854906]
[1751723329189,5.03530858,148.19,148.18,13.71570781]
[1751723330276,5.03530858,148.22,148.18,13.71570781]
[1751723330463,5.03530858,148.21,148.18,13.71570781]
[1751723330672,5.03530858,148.2,148.18,13.71570781]
[1751723330884,5.03530858,148.19,148.18,13.71570781]
[1751723331197,5.03530858,148.21,148.18,13.71570781]
[1751723331373,5.03530858,148.2,148.18,13.71570781]
[1751723331579,5.03161622,148.21,148.18,13.71570781]
[1751723331777,5.03161622,148.2,148.18,13.71570781]
[1751723331978,5.03161622,148.21,148.18,13.71570781]
[1751723332282,5.03161622,148.2,148.17,6.96715875]
[1751723332476,13.71390085,148.22,148.17,6.96715875]
[1751723332672,5.03059393,148.21,148.17,6.96715875]
[1751723332871,5.03059393,148.2,148.17,6.96715875]
[1751723333072,6.96715875,148.21,148.17,13.71587518]
[1751723333273,11.99774577,148.2,148.16,13.71643897]
[1751723333997,6.96715875,148.2,148.16,6.74928022]
[1751723334174,6.96715875,148.17,148.14,6.75016928]
[1751723334994,11.99576079,148.17,148.14,6.75016928]
[1751723335186,6.96715875,148.17,148.14,6.75016928]
[1751723335876,11.99593108,148.17,148.14,6.75016928]
[1751723336077,6.96715875,148.17,148.14,6.75016928]
[1751723336790,11.99667418,148.17,148.14,6.75016928]
[1751723336994,6.96715875,148.17,148.14,6.75016928]
[1751723338304,11.997822,148.17,148.14,6.75016928]
[1751723338496,6.96715875,148.17,148.14,6.75016928]
[1751723339223,6.96715875,148.18,148.14,6.75016928]
[1751723339383,5.03133179,148.17,148.14,6.75016928]
[1751723339584,6.96715875,148.18,148.14,6.75016928]
[1751723339802,5.03132505,148.17,148.14,6.75016928]
[1751723339985,6.96715875,148.18,148.14,6.75016928]
[1751723340181,6.96715875,148.16,148.13,32.81072357]
[1751723340407,6.96715875,148.15,148.13,32.81072357]
[1751723342287,6.96715875,148.16,148.13,32.81072357]
[1751723343686,11.99976805,148.16,148.13,32.81072357]
[1751723343902,6.96715875,148.16,148.13,32.81072357]
[1751723344404,6.96715875,148.18,148.14,6.96715875]
[1751723344605,5.03331216,148.17,148.14,6.96715875]
[1751723344801,5.03331216,148.16,148.14,6.96715875]
[1751723345109,5.03331216,148.17,148.14,6.96715875]
[1751723345284,6.96715875,148.18,148.14,6.96715875]
[1751723345583,5.03417673,148.17,148.14,6.96715875]
[1751723345776,6.96715875,148.18,148.14,6.96715875]
[1751723345984,5.03418176,148.17,148.14,6.96715875]
[1751723346284,6.96715875,148.2,148.16,6.96715875]
[1751723346483,5.03466507,148.19,148.16,6.96715875]
[1751723346799,5.03466507,148.18,148.16,6.96715875]
[1751723347110,5.03466507,148.17,148.16,6.96715875]
[1751723347811,5.03466507,148.17,148.16,13.71661879]
[1751723348985,5.03556624,148.19,148.16,13.71661879]
[1751723349201,5.03556624,148.18,148.16,13.71661879]
[1751723349514,20.00906777,148.21,148.16,13.71661879]
[1751723349702,5.03547108,148.2,148.16,13.71661879]
[1751723349901,5.03547108,148.19,148.16,13.71661879]
[1751723350105,5.03547108,148.18,148.16,13.71661879]
[1751723350301,5.03567192,148.2,148.17,6.96715875]
[1751723350492,6.96715875,148.23,148.19,6.96715875]
[1751723350693,5.03590839,148.22,148.19,6.96715875]
[1751723350894,5.03590839,148.21,148.19,6.96715875]
[1751723351093,5.03590839,148.2,148.19,6.96715875]
[1751723351301,5.03590839,148.23,148.19,6.96715875]
[1751723351612,5.03590839,148.22,148.19,6.96715875]
[1751723351798,5.03590839,148.21,148.19,6.96715875]
[1751723352000,5.03590839,148.2,148.19,6.96715875]
[1751723352204,5.03590839,148.23,148.19,6.96715875]
[1751723352415,5.03590839,148.22,148.19,6.96715875]
[1751723352600,5.03590839,148.21,148.19,6.96715875]
[1751723352800,5.03590839,148.2,148.19,6.74809366]
[1751723352999,5.03590839,148.23,148.19,13.71525241]
[1751723353318,13.0399991,148.25,148.19,13.71525241]
[1751723353319,5.03590839,148.22,148.21,6.96715875]
[1751723355823,5.03590839,148.22,148.2,6.96715875]
[1751723356121,13.71270004,148.25,148.2,6.96715875]
[1751723356315,5.03281395,148.24,148.2,6.96715875]
[1751723356494,5.03281395,148.23,148.2,6.96715875]
[1751723356819,5.03281395,148.22,148.2,6.96715875]
[1751723357019,6.96715875,148.24,148.19,6.96715875]
[1751723357220,5.03307872,148.23,148.19,6.96715875]
[1751723357422,5.03307872,148.22,148.2,6.96715875]
[1751723357619,18.74608549,148.24,148.18,6.89071063]
[1751723357795,6.96715875,148.22,148.18,6.96715875]
[1751723358396,6.96715875,148.23,148.18,6.96715875]
[1751723358698,5.03219188,148.22,148.18,6.96715875]
[1751723358898,13.71373431,148.23,148.18,6.96715875]
[1751723359098,5.03219188,148.22,148.18,6.96715875]
[1751723359404,5.03146983,148.21,148.18,6.96715875]
[1751723359610,11.99852501,148.2,148.16,6.74935835]
[1751723359810,5.03136626,148.19,148.16,6.74935835]
[1751723362121,5.03132785,148.19,148.16,6.74935835]
[1751723366027,6.96715875,148.19,148.15,13.71691659]
[1751723368421,6.96715875,148.19,148.15,0.14216157]
[1751723369439,6.96715875,148.19,148.15,6.89188976]
[1751723369830,11.99914372,148.18,148.14,13.71749969]
[1751723370031,11.99914372,148.18,148.14,6.75034094]
[1751723370332,11.99914372,148.18,148.14,13.71749969]
[1751723372315,6.96715875,148.18,148.14,13.71749969]
[1751723372515,11.99952814,148.19,148.14,13.71749969]
[1751723372716,5.03236939,148.18,148.14,13.71749969]
[1751723375144,5.03236939,148.18,148.15,13.71684097]
[1751723376133,5.03236939,148.18,148.16,6.96715875]
[1751723376319,5.03242267,148.19,148.16,6.96715875]
[1751723376638,13.71497642,148.2,148.16,6.96715875]
[1751723376942,5.03264889,148.19,148.16,6.96715875]
[1751723377136,13.71497642,148.2,148.16,6.96715875]
[1751723377334,5.03264889,148.19,148.16,6.96715875]
[1751723377636,13.71497642,148.2,148.16,6.96715875]
[1751723377836,5.03271716,148.19,148.16,6.96715875]
[1751723378025,13.71497642,148.2,148.16,6.96715875]
[1751723378228,5.03271716,148.19,148.16,13.7165619]
[1751723378426,13.71497642,148.2,148.16,13.7165619]
[1751723378628,5.03278789,148.19,148.17,6.96715875]
[1751723378830,13.7145452,148.21,148.17,6.96715875]
[1751723379133,5.03289359,148.2,148.17,6.96715875]
[1751723379334,5.03289359,148.19,148.17,6.96715875]
[1751723379649,13.7145452,148.21,148.17,6.96715875]
[1751723379838,5.03314497,148.2,148.17,6.96715875]
[1751723380023,5.03314497,148.19,148.17,6.96715875]
[1751723380219,5.03314497,148.2,148.17,6.96715875]
[1751723380524,47.5027627,148.23,148.18,6.96715875]
[1751723380739,5.03370768,148.22,148.18,6.96715875]
[1751723380915,5.03370768,148.21,148.18,6.96715875]
[1751723381114,5.03370768,148.2,148.18,6.96715875]
[1751723381315,12.00086643,148.22,148.18,6.96715875]
[1751723381515,5.03370768,148.21,148.17,13.71606687]
[1751723381739,5.03370768,148.2,148.17,13.71606687]
[1751723382021,5.03370768,148.21,148.17,13.71606687]
[1751723382244,5.03370768,148.2,148.17,13.71606687]
[1751723382434,5.03370768,148.21,148.17,13.71606687]
[1751723382637,5.03370768,148.2,148.17,13.71606687]
[1751723382852,5.03370768,148.21,148.17,13.71606687]
[1751723383148,5.03370768,148.2,148.17,13.71606687]
[1751723383450,5.03370768,148.21,148.17,13.71606687]
[1751723383740,5.03370768,148.2,148.17,13.71606687]
[1751723383926,6.96715875,148.2,148.17,6.74890812]
[1751723384238,5.03400867,148.19,148.17,6.74890812]
[1751723384445,5.03400867,148.19,148.16,6.74946004]
[1751723384821,6.96715875,148.2,148.16,6.74946004]
[1751723385022,5.03437945,148.19,148.16,6.74946004]
[1751723385251,6.96715875,148.2,148.16,6.74946004]
[1751723385424,5.03456797,148.19,148.16,6.74946004]
[1751723385622,6.96715875,148.2,148.16,6.74946004]
[1751723385927,5.03456797,148.19,148.16,6.74946004]
[1751723386127,6.96715875,148.2,148.16,6.74946004]
[1751723386340,5.0347517,148.19,148.16,6.74946004]
[1751723386537,6.96715875,148.2,148.16,6.74946004]
[1751723386732,5.035138,148.19,148.16,6.74946004]
[1751723386934,6.96715875,148.2,148.16,6.74946004]
[1751723387146,5.035138,148.19,148.16,6.74946004]
[1751723387451,6.96715875,148.2,148.16,6.74946004]
[1751723387633,5.03598328,148.19,148.16,6.74946004]
[1751723387834,6.96715875,148.2,148.16,6.74946004]
[1751723388027,5.03598498,148.19,148.16,6.74946004]
[1751723388229,6.96715875,148.2,148.16,6.74946004]
[1751723388543,5.03700505,148.19,148.16,13.71661879]
[1751723388739,6.96715875,148.2,148.16,13.71661879]
[1751723389034,5.03700505,148.19,148.16,13.71661879]
[1751723389241,6.96715875,148.2,148.16,13.71661879]
[1751723389446,5.03778225,148.19,148.16,13.71661879]
[1751723389639,6.96715875,148.2,148.16,13.71661879]
[1751723389841,5.03778225,148.19,148.16,13.71661879]
[1751723390045,6.96715875,148.2,148.16,13.71661879]
[1751723390230,5.03778225,148.19,148.16,13.71661879]
[1751723390422,6.96715875,148.2,148.16,13.71661879]
[1751723390625,5.03821028,148.19,148.16,13.71661879]
[1751723390846,6.96715875,148.2,148.16,13.71661879]
[1751723391040,5.03821028,148.19,148.16,13.71661879]
[1751723391243,6.96715875,148.2,148.16,13.71661879]
[1751723391444,5.03866729,148.19,148.16,13.71661879]
[1751723391626,6.96715875,148.2,148.16,13.71661879]
[1751723391827,5.03866729,148.19,148.16,13.71661879]
[1751723392027,6.96715875,148.2,148.16,13.71661879]
[1751723392241,5.03866687,148.19,148.16,13.71661879]
[1751723392548,6.96715875,148.17,148.14,6.74992018]
[1751723394026,6.96715875,148.18,148.14,6.74992018]
[1751723394353,5.03864002,148.17,148.14,6.74992018]
[1751723394652,6.96715875,148.18,148.14,6.74992018]
[1751723394846,5.03864002,148.17,148.14,6.74992018]
[1751723395041,6.96715875,148.18,148.14,6.74992018]
[1751723396643,5.03842487,148.17,148.14,6.74992018]
[1751723396846,6.96715875,148.18,148.14,6.74992018]
[1751723397152,5.0384242,148.17,148.14,6.74992018]
[1751723397333,6.96715875,148.18,148.14,6.74992018]
[1751723397533,5.03836079,148.17,148.14,6.74992018]
[1751723397754,6.96715875,148.18,148.14,13.71707893]
[1751723397954,5.03836079,148.17,148.14,13.71707893]
[1751723398151,6.96715875,148.19,148.15,13.71687644]
[1751723398352,5.03868757,148.18,148.15,13.71687644]
[1751723398544,5.03868757,148.17,148.15,13.71687644]
[1751723398745,6.96715875,148.19,148.15,13.71687644]
[1751723398939,5.03873702,148.18,148.15,13.71687644]
[1751723399140,5.03873702,148.17,148.15,13.71687644]
[1751723399338,6.96715875,148.19,148.15,13.71687644]
[1751723399642,5.03925084,148.18,148.16,6.96715875]
[1751723399841,13.7145366,148.21,148.16,6.96715875]
[1751723400044,5.03952777,148.2,148.16,6.96715875]
[1751723400243,5.03952777,148.19,148.16,6.96715875]
[1751723400543,5.03952777,148.18,148.16,6.96715875]
[1751723400743,13.7145366,148.21,148.16,13.71637586]
[1751723400943,5.04012761,148.2,148.16,13.71637586]
[1751723401255,5.04012761,148.19,148.16,13.71637586]
[1751723401438,5.04012761,148.18,148.16,13.71637586]
[1751723401646,13.7145366,148.21,148.16,13.71637586]
[1751723401837,5.04110474,148.2,148.16,13.71637586]
[1751723402030,5.04110474,148.19,148.16,13.71637586]
[1751723402233,5.04110474,148.18,148.16,13.71637586]
[1751723402430,6.96715875,148.2,148.16,13.71637586]
[1751723402634,5.04222607,148.19,148.16,13.71637586]
[1751723402843,5.04222607,148.18,148.16,13.71637586]
[1751723403043,13.0456735,148.21,148.16,13.71637586]
[1751723403243,12.00948162,148.2,148.16,13.71637586]
[1751723403445,5.04232287,148.19,148.16,13.71637586]
[1751723403645,5.04232287,148.18,148.16,13.71637586]
[1751723403863,5.04232287,148.17,148.16,13.71637586]
[1751723404653,5.04232287,148.17,148.16,13.85853743]
[1751723405047,13.2654544,148.21,148.16,13.85853743]
[1751723405251,5.04487996,148.2,148.16,13.85853743]
[1751723405551,5.04487996,148.19,148.16,13.85853743]
[1751723405743,5.04487996,148.18,148.16,13.85853743]
[1751723405945,13.2654544,148.22,148.17,6.96715875]
[1751723406147,5.04496044,148.21,148.18,6.96715875]
[1751723406342,5.04496044,148.2,148.18,6.96715875]
[1751723406542,5.04496044,148.19,148.18,6.96715875]
[1751723406939,5.04496044,148.19,148.18,13.71570781]
[1751723408364,5.04496044,148.19,148.18,6.74854906]
[1751723411376,5.04496044,148.19,148.17,6.89116609]
[1751723411561,6.96715875,148.21,148.17,6.89116609]
[1751723411871,5.04302512,148.2,148.17,6.89116609]
[1751723412068,5.04302512,148.19,148.17,6.89116609]
[1751723412253,6.96715875,148.21,148.17,6.89116609]
[1751723412456,5.04273823,148.2,148.17,6.89116609]
[1751723412655,5.04273823,148.19,148.17,6.89116609]
[1751723412854,6.96715875,148.21,148.17,6.89116609]
[1751723413077,5.0425264,148.2,148.17,6.89116609]
[1751723413256,5.0425264,148.19,148.17,6.89116609]
[1751723413458,6.96715875,148.21,148.17,6.89116609]
[1751723413755,5.0424192,148.2,148.17,6.89116609]
[1751723413955,5.0424192,148.19,148.17,6.89116609]
[1751723414176,6.96715875,148.21,148.17,6.89116609]
[1751723414369,5.04239794,148.2,148.17,6.89116609]
[1751723414669,5.04239794,148.19,148.17,6.89116609]
[1751723414847,6.96715875,148.21,148.17,6.89116609]
[1751723415053,6.96715875,148.19,148.15,6.74991562]
[1751723415276,6.96715875,148.17,148.15,6.74991562]
[1751723415973,6.96715875,148.18,148.15,6.74991562]
[1751723416164,5.04173195,148.17,148.15,6.74991562]
[1751723416364,6.96715875,148.18,148.14,6.89253284]
[1751723416566,5.04178524,148.17,148.14,6.89253284]
[1751723416865,6.96715875,148.18,148.14,6.89253284]
[1751723417068,5.04178524,148.17,148.14,6.89253284]
[1751723417271,6.96715875,148.18,148.14,6.89253284]
[1751723417477,5.04184078,148.17,148.14,6.89253284]
[1751723417761,6.96715875,148.19,148.14,13.85969159]
[1751723418073,5.04184428,148.18,148.16,6.74946004]
[1751723418283,5.04184428,148.17,148.16,6.74946004]
[1751723419697,5.04184428,148.17,148.16,13.71661879]
[1751723419863,5.04184428,148.17,148.16,13.85878036]
[1751723420059,6.96715875,148.21,148.16,13.71661879]
[1751723420366,5.04249662,148.2,148.16,13.71661879]
[1751723420684,5.04249662,148.19,148.16,13.71661879]
[1751723420881,5.04249662,148.18,148.16,13.71661879]
[1751723421086,5.04249662,148.17,148.16,13.85878036]
[1751723424584,5.04261879,148.17,148.16,13.85878036]
[1751723424988,13.27043224,148.21,148.16,13.85878036]
[1751723424989,6.96715875,148.21,148.16,13.85878036]
[1751723425287,5.04284636,148.2,148.16,13.85878036]
[1751723425488,5.04284636,148.19,148.16,13.85878036]
[1751723425667,5.04284636,148.18,148.16,13.85878036]
[1751723425866,6.96715875,148.21,148.16,13.85878036]
[1751723426077,5.04284595,148.2,148.17,13.71573632]
[1751723426287,5.04284595,148.19,148.17,13.71573632]
[1751723426577,5.04284595,148.18,148.17,13.71573632]
[1751723432300,5.04284595,148.18,148.17,6.74857757]
[1751723434600,5.04284595,148.18,148.17,13.71573632]
[1751723434921,6.96715875,148.22,148.17,13.71573632]
[1751723435097,5.04349451,148.21,148.17,13.71573632]
[1751723435296,5.04349451,148.2,148.17,13.71573632]
[1751723435498,5.04349451,148.19,148.17,13.71573632]
[1751723435791,4.45598003,148.22,148.17,11.2045576]
[1751723436000,5.04336353,148.21,148.17,11.2045576]
[1751723436317,5.04323764,148.2,148.17,11.2045576]
[1751723436522,5.04323764,148.19,148.17,11.2045576]
[1751723436816,4.45598003,148.22,148.17,11.2045576]
[1751723437022,5.04324117,148.21,148.17,11.2045576]
[1751723437220,5.04324117,148.2,148.17,11.2045576]
[1751723437421,5.04324117,148.19,148.17,11.2045576]
[1751723437714,4.45598003,148.22,148.17,11.2045576]
[1751723437916,5.04313049,148.21,148.17,11.2045576]
[1751723438109,5.04313049,148.2,148.17,11.2045576]
[1751723438418,5.04313049,148.19,148.17,11.2045576]
[1751723438714,4.45598003,148.22,148.17,11.2045576]
[1751723438921,5.04267153,148.21,148.17,11.2045576]
[1751723439095,5.04267153,148.2,148.17,11.2045576]
[1751723439417,5.04267153,148.19,148.17,11.2045576]
[1751723439632,4.45598003,148.22,148.17,11.2045576]
[1751723439934,5.04261268,148.21,148.17,11.2045576]
[1751723440108,5.04261268,148.2,148.17,11.2045576]
[1751723440308,5.04261268,148.19,148.17,11.2045576]
[1751723440510,4.45598003,148.22,148.17,11.2045576]
[1751723440732,5.04257693,148.21,148.17,11.2045576]
[1751723440918,5.04257693,148.2,148.17,11.2045576]
[1751723441110,5.04257693,148.19,148.17,11.2045576]
[1751723441314,4.45598003,148.22,148.17,11.2045576]
[1751723441518,5.04257639,148.21,148.17,11.2045576]
[1751723441724,5.04257639,148.2,148.17,11.2045576]
[1751723441925,5.04257639,148.19,148.17,11.2045576]
[1751723442127,4.45598003,148.22,148.17,11.2045576]
[1751723442425,5.04251419,148.21,148.17,11.2045576]
[1751723442723,5.04251419,148.2,148.17,11.2045576]
[1751723442921,5.04251419,148.19,148.17,11.2045576]
[1751723443130,4.45598003,148.22,148.17,11.2045576]
[1751723443331,9.49871568,148.21,148.17,6.74857757]
[1751723443534,5.04273565,148.2,148.17,6.74857757]
[1751723443708,5.04273565,148.19,148.17,6.74857757]
[1751723443909,4.45598003,148.21,148.17,6.74857757]
[1751723444129,5.04304003,148.2,148.17,6.74857757]
[1751723444330,5.04304003,148.19,148.17,6.74857757]
[1751723444530,4.45598003,148.21,148.17,6.74857757]
[1751723444734,5.04333578,148.2,148.17,6.74857757]
[1751723444935,5.04333578,148.19,148.17,6.74857757]
[1751723445238,4.45598003,148.21,148.17,6.74857757]
[1751723445432,5.04338426,148.2,148.17,6.74857757]
[1751723445611,5.04338426,148.19,148.17,6.74857757]
[1751723445813,4.45598003,148.21,148.17,6.74857757]
[1751723446014,5.04338426,148.2,148.17,6.74857757]
[1751723446323,5.04338426,148.19,148.17,6.74857757]
[1751723446509,4.45598003,148.21,148.17,6.74857757]
[1751723446712,5.04345977,148.2,148.17,6.74857757]
[1751723446931,5.04345977,148.19,148.17,6.74857757]
[1751723447141,5.04345977,148.18,148.17,6.74857757]
[1751723448436,4.45598003,148.21,148.17,6.74857757]
[1751723448640,5.04359705,148.2,148.17,6.74857757]
[1751723448835,5.04359705,148.19,148.17,6.74857757]
[1751723449028,4.45598003,148.21,148.17,6.74857757]
[1751723449221,5.04371289,148.2,148.17,6.74857757]
[1751723449425,5.04371289,148.19,148.17,6.74857757]
[1751723449626,4.45598003,148.21,148.17,6.74857757]
[1751723449828,5.04371289,148.2,148.17,6.74857757]
[1751723450137,5.04371289,148.19,148.17,6.74857757]
[1751723450336,4.45598003,148.21,148.17,6.74857757]
[1751723450639,5.04368888,148.2,148.17,6.74857757]
[1751723450935,0.04368888,148.19,148.17,6.74857757]
[1751723451142,4.45598003,148.21,148.17,6.74857757]
[1751723451818,39.05051936,148.23,148.17,6.74857757]
[1751723452016,4.45598003,148.21,148.17,6.74857757]
[1751723453725,4.45598003,148.22,148.17,11.2045576]
[1751723456362,4.45598003,148.21,148.17,11.2045576]
[1751723457253,4.45598003,148.21,148.17,6.74857757]
[1751723457558,4.45598003,148.2,148.17,6.74857757]
[1751723460783,4.45598003,148.2,148.16,6.7492729]
[1751723460953,4.45598003,148.19,148.16,6.7492729]
[1751723462958,5.04336077,148.18,148.16,6.7492729]
[1751723463161,5.04336077,148.17,148.16,6.7492729]
[1751723463548,5.04336077,148.17,148.14,6.89253284]
[1751723463874,4.45598003,148.19,148.14,11.34851287]
[1751723464047,5.04337754,148.18,148.14,11.34851287]
[1751723464250,5.04337754,148.17,148.14,11.34851287]
[1751723464467,13.05155968,148.21,148.14,11.34851287]
[1751723464772,4.45598003,148.19,148.14,11.34851287]
[1751723464954,5.04332642,148.18,148.14,11.34851287]
[1751723465155,5.04332642,148.17,148.14,11.34851287]
[1751723465474,4.45598003,148.19,148.14,11.34851287]
[1751723465678,5.04295978,148.18,148.14,11.34851287]
[1751723465875,5.04295978,148.17,148.14,11.34851287]
[1751723466056,4.45598003,148.19,148.14,11.34851287]
[1751723466376,5.04301654,148.18,148.14,11.34851287]
[1751723466578,5.04301654,148.17,148.14,11.34851287]